[Event "EYCC Girls-U12 2019"]
[Site "Bratislava"]
[Date "2019.08.09"]
[Round "8.10"]
[White "Schippke, Manon"]
[Black "Norman, Kseniya"]
[Result "1-0"]
[ECO "B06"]
[WhiteElo "1743"]
[BlackElo "1532"]
[Annotator "NA"]
[PlyCount "131"]
[EventDate "2019.08.02"]
[EventType "swiss"]
[EventCountry "SVK"]
[SourceTitle "playchess.com"]
[Source "ChessBase"]
[SourceQuality "1"]
[TimeControl "40/5400+30:1800+30"]

1. e4 {[%emt 0:00:00]} g6 {[%emt 0:00:00]} 2. d4 {[%emt 0:00:14]} Bg7 {[%emt 0:00:00]} 3. Nc3 {[%emt 0:01:10]} d6 {[%emt 0:00:26]} 4. Be3 {[%emt 0:00:47]} Nd7 {[%emt 0:00:48]} 5. h4 {[%emt 0:01:36]} h6 {[%emt 0:02:05]} 6. Qd2 {[%emt 0:00:57]} a6 {[%emt 0:00:51]} 7. Bd3 {[%emt 0:03:55]} b5 {[%emt 0:01:39]} 8. a4 {[%emt 0:01:18]} b4 {[%emt 0:01:12]} 9. Nce2 {[%emt 0:00:25]} a5 {[%emt 0:01:29]} 10. Ng3 {[%emt 0:01:18]} e6 {[%emt 0:06:56]} 11. O-O-O {[%emt 0:03:35]} Nb6 {[%emt 0:06:15]} 12. Bb5+ {[%emt 0:01:28]} Bd7 {[%emt 0:00:25]} 13. Bxd7+ {[%emt 0:00:14]} Qxd7 {[%emt 0:00:06]} 14. b3 {[%emt 0:00:12]} Rb8 {[%emt 0:08:26]} 15. f4 {[%emt 0:03:44]} Ne7 {[%emt 0:02:07]} 16. h5 {[%emt 0:00:52]} Nxa4 {[%emt 0:03:43]} 17. bxa4 {[%emt 0:06:50]} Qxa4 {[%emt 0:00:07]} 18. Qd3 {[%emt 0:01:45]} b3 {[%emt 0:00:29]} 19. Kd2 {[%emt 0:03:13]} Qa2 {[%emt 0:15:27]} 20. Nf3 {[%emt 0:06:04]} b2 {[%emt 0:02:22]} 21. Rb1 {[%emt 0:05:24]} a4 {[%emt 0:05:34]} 22. Ne2 {[%emt 0:03:02]} Nc6 {[%emt 0:03:53]} 23. Nc3 {[%emt 0:01:41]} Qa3 {[%emt 0:00:14]} 24. Qc4 {[%emt 0:01:06]} Na5 {[%emt 0:07:17]} 25. Qxc7 {[%emt 0:13:00]} Qb4 {[%emt 0:01:30]} 26. Ke2 {[%emt 0:04:04]} Rb7 {[%emt 0:02:23]} 27. Rxb2 {[%emt 0:03:18]} Qxb2 {[%emt 0:02:06]} 28. Qxa5 {[%emt 0:00:08]} a3 {[%emt 0:02:27]} 29. Kd2 {[%emt 0:05:55]} Qb6 {[%emt 0:04:39]} 30. Qxb6 {[%emt 0:04:23]} Rxb6 {[%emt 0:00:06]} 31. Ra1 {[%emt 0:01:04]} Ra6 {[%emt 0:00:29]} 32. hxg6 {[%emt 0:00:38]} fxg6 {[%emt 0:00:14]} 33. Nb5 {[%emt 0:01:23]} Kd7 {[%emt 0:01:36]} 34. Rxa3 {[%emt 0:01:01]} Rxa3 {[%emt 0:00:21]} 35. Nxa3 {[%emt 0:00:09]} Bf6 {[%emt 0:03:54]} 36. e5 {[%emt 0:02:19]} dxe5 {[%emt 0:00:51]} 37. fxe5 {[%emt 0:01:46]} Be7 {[%emt 0:00:36]} 38. Nb5 {[%emt 0:02:29]} g5 {[%emt 0:00:53]} 39. c4 {[%emt 0:01:46]} g4 {[%emt 0:00:36]} 40. Ne1 {[%emt 0:00:00]} Bb4+ {[%emt 0:00:00]} 41. Nc3 {[%emt 0:03:08]} Rc8 {[%emt 0:02:29]} 42. Kd3 {[%emt 0:00:15]} h5 {[%emt 0:00:44]} 43. g3 {[%emt 0:01:18]} Be7 {[%emt 0:02:18]} 44. Bf2 {[%emt 0:02:14]} Rg8 {[%emt 0:02:29]} 45. Ne4 {[%emt 0:01:03]} h4 {[%emt 0:04:56]} 46. gxh4 {[%emt 0:01:36]} g3 {[%emt 0:00:08]} 47. Bxg3 {[%emt 0:01:17]} Rxg3+ {[%emt 0:00:19]} 48. Nxg3 {[%emt 0:00:23]} Bxh4 {[%emt 0:00:06]} 49. Ne4 {[%emt 0:00:54]} Bxe1 {[%emt 0:00:18]} 50. Nc5+ {[%emt 0:00:49]} Ke7 {[%emt 0:00:34]} 51. d5 {[%emt 0:00:19]} exd5 {[%emt 0:00:41]} 52. cxd5 {[%emt 0:00:08]} Bg3 {[%emt 0:01:48]} 53. d6+ {[%emt 0:00:32]} Kd8 {[%emt 0:00:10]} 54. Ke4 {[%emt 0:00:22]} Bh2 {[%emt 0:00:58]} 55. Kd5 {[%emt 0:00:23]} Bg3 {[%emt 0:01:11]} 56. Ne4 {[%emt 0:01:25]} Bh4 {[%emt 0:00:23]} 57. Nf6 {[%emt 0:00:45]} Kc8 {[%emt 0:00:34]} 58. Ke6 {[%emt 0:00:56]} Kd8 {[%emt 0:00:14]} 59. Kf7 {[%emt 0:00:52]} Bg3 {[%emt 0:00:40]} 60. Ng4 {[%emt 0:00:31]} Bf4 {[%emt 0:00:22]} 61. Ke6 {[%emt 0:00:32]} Bg5 {[%emt 0:00:23]} 62. Kd5 {[%emt 0:00:44]} Bh4 {[%emt 0:00:15]} 63. e6 {[%emt 0:00:38]} Bg5 {[%emt 0:00:08]} 64. Ke5 {[%emt 0:00:15]} Bh4 {[%emt 0:00:17]} 65. Nf6 {[%emt 0:00:12]} Bg3+ {[%emt 0:00:28]} 66. Kd5 {[%emt 0:00:05]} 1-0

[Event "EYCC Girls-U12 2019"]
[Site "Bratislava"]
[Date "2019.08.09"]
[Round "8.11"]
[White "Orian, Noga"]
[Black "Siekanska, Maria"]
[Result "0-1"]
[ECO "D02"]
[WhiteElo "1628"]
[BlackElo "1561"]
[Annotator "NA"]
[PlyCount "88"]
[EventDate "2019.08.02"]
[EventType "swiss"]
[EventCountry "SVK"]
[SourceTitle "playchess.com"]
[Source "ChessBase"]
[SourceQuality "1"]
[TimeControl "40/5400+30:1800+30"]

1. d4 {[%emt 0:00:00]} d5 {[%emt 0:00:00]} 2. Nf3 {[%emt 0:00:00]} e6 {[%emt 0:00:00]} 3. Bf4 {[%emt 0:00:00]} c5 {[%emt 0:00:00]} 4. e3 {[%emt 0:00:01]} Nc6 {[%emt 0:00:55]} 5. c3 {[%emt 0:00:16]} Bd6 {[%emt 0:01:24]} 6. Bg3 {[%emt 0:00:19]} Nf6 {[%emt 0:00:26]} 7. Nbd2 {[%emt 0:00:39]} O-O {[%emt 0:00:28]} 8. Bd3 {[%emt 0:00:22]} b6 {[%emt 0:00:51]} 9. O-O {[%emt 0:01:07]} Bxg3 {[%emt 0:01:50]} 10. hxg3 {[%emt 0:00:12]} Bb7 {[%emt 0:01:25]} 11. Qe2 {[%emt 0:01:46]} Re8 {[%emt 0:08:32]} 12. Ba6 {[%emt 0:06:37]} Bxa6 {[%emt 0:04:43]} 13. Qxa6 {[%emt 0:00:05]} Qc7 {[%emt 0:09:57]} 14. Qd3 {[%emt 0:05:32]} Rad8 {[%emt 0:01:37]} 15. Rad1 {[%emt 0:03:34]} h6 {[%emt 0:08:09]} 16. Rfe1 {[%emt 0:03:43]} Ng4 {[%emt 0:10:31]} 17. Qe2 {[%emt 0:04:25]} e5 {[%emt 0:02:13]} 18. dxe5 {[%emt 0:00:16]} Ngxe5 {[%emt 0:00:31]} 19. Nxe5 {[%emt 0:00:55]} Nxe5 {[%emt 0:00:51]} 20. Nf3 {[%emt 0:01:52]} Ng4 {[%emt 0:06:48]} 21. Qc2 {[%emt 0:06:27]} Nf6 {[%emt 0:04:56]} 22. c4 {[%emt 0:02:21]} dxc4 {[%emt 0:02:35]} 23. Qxc4 {[%emt 0:00:28]} Rd7 {[%emt 0:03:51]} 24. Kf1 {[%emt 0:05:37]} Red8 {[%emt 0:04:24]} 25. Ke2 {[%emt 0:08:51]} Rxd1 {[%emt 0:07:51]} 26. Rxd1 {[%emt 0:00:09]} Rxd1 {[%emt 0:00:06]} 27. Kxd1 {[%emt 0:00:04]} Qd6+ {[%emt 0:00:37]} 28. Ke2 {[%emt 0:01:35]} Kf8 {[%emt 0:01:20]} 29. Qf4 {[%emt 0:05:54]} Qd7 {[%emt 0:02:23]} 30. b3 {[%emt 0:05:42]} Qb5+ {[%emt 0:01:27]} 31. Qc4 {[%emt 0:02:14]} Qxc4+ {[%emt 0:00:48]} 32. bxc4 {[%emt 0:00:03]} Ne4 {[%emt 0:00:39]} 33. a3 {[%emt 0:03:33]} a6 {[%emt 0:02:08]} 34. Nd2 {[%emt 0:02:27]} Nd6 {[%emt 0:02:02]} 35. Kd3 {[%emt 0:02:46]} b5 {[%emt 0:02:12]} 36. cxb5 {[%emt 0:13:02]} axb5 {[%emt 0:00:17]} 37. Nb1 {[%emt 0:01:17]} f5 {[%emt 0:01:54]} 38. Nc3 {[%emt 0:04:37]} Ke8 {[%emt 0:01:24]} 39. g4 {[%emt 0:07:21]} fxg4 {[%emt 0:04:24]} 40. e4 {[%emt 0:00:00]} h5 {[%emt 0:00:00]} 41. e5 {[%emt 0:00:53]} Nf5 {[%emt 0:08:33]} 42. Nxb5 {[%emt 0:00:56]} h4 {[%emt 0:00:36]} 43. Ke2 {[%emt 0:09:45]} Nd4+ {[%emt 0:00:33]} 44. Nxd4 {[%emt 0:00:14]} cxd4 {[%emt 0:00:05]} 0-1

[Event "EYCC Girls-U12 2019"]
[Site "Bratislava"]
[Date "2019.08.09"]
[Round "8.12"]
[White "Putar, Lara"]
[Black "Komissarova, Soigina"]
[Result "1/2-1/2"]
[ECO "D30"]
[WhiteElo "1608"]
[BlackElo "1663"]
[Annotator "NA"]
[PlyCount "96"]
[EventDate "2019.08.02"]
[EventType "swiss"]
[EventCountry "SVK"]
[SourceTitle "playchess.com"]
[Source "ChessBase"]
[SourceQuality "1"]
[TimeControl "40/5400+30:1800+30"]

1. d4 {[%emt 0:00:00]} d5 {[%emt 0:00:00]} 2. c4 {[%emt 0:00:00]} e6 {[%emt 0:00:00]} 3. Nf3 {[%emt 0:00:25]} Nf6 {[%emt 0:00:27]} 4. g3 {[%emt 0:01:09]} Bb4+ {[%emt 0:01:50]} 5. Bd2 {[%emt 0:00:27]} Be7 {[%emt 0:01:04]} 6. Bg2 {[%emt 0:01:10]} O-O {[%emt 0:01:26]} 7. O-O {[%emt 0:01:14]} c6 {[%emt 0:01:31]} 8. Nc3 {[%emt 0:01:01]} dxc4 {[%emt 0:08:30]} 9. a4 {[%emt 0:05:42]} Nbd7 {[%emt 0:07:53]} 10. e4 {[%emt 0:04:57]} c5 {[%emt 0:04:56]} 11. Qe2 {[%emt 0:07:24]} cxd4 {[%emt 0:04:55]} 12. Nxd4 {[%emt 0:00:17]} Ne5 {[%emt 0:02:10]} 13. Rfd1 {[%emt 0:05:26]} Nd3 {[%emt 0:08:59]} 14. Be3 {[%emt 0:02:33]} Bc5 {[%emt 0:04:39]} 15. Nxe6 {[%emt 0:05:27]} Bxe6 {[%emt 0:01:59]} 16. Bxc5 {[%emt 0:00:12]} Re8 {[%emt 0:01:52]} 17. Be3 {[%emt 0:06:33]} Qe7 {[%emt 0:02:22]} 18. Nd5 {[%emt 0:10:15]} Bxd5 {[%emt 0:13:21]} 19. exd5 {[%emt 0:00:14]} Qb4 {[%emt 0:02:45]} 20. Rab1 {[%emt 0:04:50]} Qb3 {[%emt 0:02:14]} 21. Qd2 {[%emt 0:14:41]} Ne4 {[%emt 0:16:38]} 22. Bxe4 {[%emt 0:01:52]} Rxe4 {[%emt 0:00:07]} 23. Qc3 {[%emt 0:01:11]} Qxc3 {[%emt 0:03:13]} 24. bxc3 {[%emt 0:00:02]} Re7 {[%emt 0:00:52]} 25. Bf4 {[%emt 0:05:42]} Rd7 {[%emt 0:00:49]} 26. d6 {[%emt 0:01:14]} f6 {[%emt 0:00:18]} 27. h4 {[%emt 0:00:43]} Re8 {[%emt 0:04:43]} 28. Rd2 {[%emt 0:03:15]} a6 {[%emt 0:03:23]} 29. a5 {[%emt 0:00:31]} g6 {[%emt 0:00:27]} 30. Kg2 {[%emt 0:01:09]} Kg7 {[%emt 0:00:11]} 31. Rb6 {[%emt 0:01:46]} h6 {[%emt 0:00:49]} 32. Rd1 {[%emt 0:03:44]} g5 {[%emt 0:00:44]} 33. hxg5 {[%emt 0:00:27]} hxg5 {[%emt 0:00:04]} 34. Be3 {[%emt 0:00:07]} Rf8 {[%emt 0:00:36]} 35. Rdb1 {[%emt 0:00:39]} Rff7 {[%emt 0:00:07]} 36. f4 {[%emt 0:02:17]} Kg6 {[%emt 0:01:14]} 37. Kf3 {[%emt 0:01:55]} Kf5 {[%emt 0:00:46]} 38. g4+ {[%emt 0:00:29]} Ke6 {[%emt 0:00:11]} 39. Ke4 {[%emt 0:01:04]} gxf4 {[%emt 0:00:45]} 40. Bxf4 {[%emt 0:00:00]} Rg7 {[%emt 0:00:00]} 41. Kf3 {[%emt 0:02:07]} Rh7 {[%emt 0:05:18]} 42. Rd1 {[%emt 0:04:00]} Rh3+ {[%emt 0:01:58]} 43. Bg3 {[%emt 0:00:32]} f5 {[%emt 0:07:39]} 44. gxf5+ {[%emt 0:01:29]} Kxf5 {[%emt 0:00:07]} 45. Rg1 {[%emt 0:03:40]} Rg7 {[%emt 0:04:43]} 46. Rbb1 {[%emt 0:03:18]} Ne5+ 47. Kf2 Nd3+ 48. Kf3 Rh5 1/2-1/2

[Event "EYCC Girls-U12 2019"]
[Site "Bratislava"]
[Date "2019.08.09"]
[Round "8.13"]
[White "Maria, Lia-Alexandra"]
[Black "Tran, Alva Ling"]
[Result "0-1"]
[ECO "B42"]
[WhiteElo "1572"]
[BlackElo "1712"]
[Annotator "NA"]
[PlyCount "96"]
[EventDate "2019.08.02"]
[EventType "swiss"]
[EventCountry "SVK"]
[SourceTitle "playchess.com"]
[Source "ChessBase"]
[SourceQuality "1"]
[TimeControl "40/5400+30:1800+30"]

1. e4 {[%emt 0:00:00]} c5 {[%emt 0:00:00]} 2. Nf3 {[%emt 0:00:00]} e6 {[%emt 0:00:00]} 3. d4 {[%emt 0:00:00]} cxd4 {[%emt 0:00:00]} 4. Nxd4 {[%emt 0:00:00]} a6 {[%emt 0:00:10]} 5. Bd3 {[%emt 0:00:00]} Nf6 {[%emt 0:00:19]} 6. O-O {[%emt 0:00:23]} Qc7 {[%emt 0:01:11]} 7. Nd2 {[%emt 0:01:30]} Nc6 {[%emt 0:01:31]} 8. N2f3 {[%emt 0:08:11]} Nxd4 {[%emt 0:08:36]} 9. Nxd4 {[%emt 0:00:19]} Bc5 {[%emt 0:00:29]} 10. Nb3 {[%emt 0:13:10]} Ba7 {[%emt 0:04:28]} 11. Kh1 {[%emt 0:08:08]} h5 {[%emt 0:10:25]} 12. Qf3 {[%emt 0:15:27]} Ng4 {[%emt 0:21:32]} 13. Bf4 {[%emt 0:03:32]} d6 {[%emt 0:01:44]} 14. Rad1 {[%emt 0:05:20]} e5 {[%emt 0:07:38]} 15. Bd2 {[%emt 0:04:45]} Nxf2+ {[%emt 0:07:01]} 16. Rxf2 {[%emt 0:03:19]} Bg4 {[%emt 0:02:17]} 17. Qxf7+ {[%emt 0:02:16]} Qxf7 {[%emt 0:00:10]} 18. Rxf7 {[%emt 0:00:04]} Kxf7 {[%emt 0:00:22]} 19. Bc4+ {[%emt 0:01:49]} Be6 {[%emt 0:02:10]} 20. Rf1+ {[%emt 0:01:43]} Ke7 {[%emt 0:00:27]} 21. Bg5+ {[%emt 0:00:50]} Kd7 {[%emt 0:00:22]} 22. Bd3 {[%emt 0:00:36]} Rhf8 {[%emt 0:01:13]} 23. Rd1 {[%emt 0:00:18]} Rf2 {[%emt 0:05:18]} 24. Bh4 {[%emt 0:02:19]} Rf7 {[%emt 0:01:29]} 25. h3 {[%emt 0:08:53]} Bf2 {[%emt 0:04:24]} 26. Bg5 {[%emt 0:01:17]} Bg3 {[%emt 0:01:34]} 27. Be2 {[%emt 0:02:42]} Rc8 {[%emt 0:04:20]} 28. Bd3 {[%emt 0:05:02]} Bc4 {[%emt 0:00:50]} 29. Bxc4 {[%emt 0:01:53]} Rxc4 {[%emt 0:00:05]} 30. c3 {[%emt 0:00:41]} Ke6 {[%emt 0:01:17]} 31. Nd2 {[%emt 0:00:54]} Rc8 {[%emt 0:00:48]} 32. Nf3 {[%emt 0:00:38]} Rd7 {[%emt 0:04:17]} 33. Be3 {[%emt 0:01:33]} Bf4 {[%emt 0:03:32]} 34. Bxf4 {[%emt 0:03:48]} exf4 {[%emt 0:00:07]} 35. Rd5 {[%emt 0:00:37]} Rc5 {[%emt 0:03:15]} 36. Nd4+ {[%emt 0:02:44]} Kf7 {[%emt 0:00:39]} 37. Kg1 {[%emt 0:00:37]} Rxd5 {[%emt 0:01:43]} 38. exd5 {[%emt 0:00:16]} Re7 {[%emt 0:01:02]} 39. Nf5 {[%emt 0:00:16]} Re2 {[%emt 0:01:10]} 40. b4 {[%emt 0:00:00]} Rxa2 {[%emt 0:00:00]} 41. Nxd6+ {[%emt 0:00:47]} Ke7 {[%emt 0:08:48]} 42. Nxb7 {[%emt 0:02:43]} Rc2 {[%emt 0:04:09]} 43. d6+ {[%emt 0:03:39]} Kd7 {[%emt 0:01:10]} 44. Nc5+ {[%emt 0:00:14]} Kxd6 {[%emt 0:00:19]} 45. Kf1 {[%emt 0:00:08]} Kc6 {[%emt 0:02:23]} 46. Ne6 {[%emt 0:00:22]} Rxc3 {[%emt 0:00:55]} 47. Nxg7 {[%emt 0:00:42]} Rb3 {[%emt 0:01:00]} 48. Nxh5 {[%emt 0:00:28]} Rxb4 {[%emt 0:00:11]} 0-1

[Event "EYCC Girls-U12 2019"]
[Site "Bratislava"]
[Date "2019.08.09"]
[Round "8.14"]
[White "Fileru, Maria"]
[Black "Dubovik, Maria"]
[Result "1/2-1/2"]
[ECO "D35"]
[WhiteElo "1602"]
[BlackElo "1504"]
[Annotator "NA"]
[PlyCount "98"]
[EventDate "2019.08.02"]
[EventType "swiss"]
[EventCountry "SVK"]
[SourceTitle "playchess.com"]
[Source "ChessBase"]
[SourceQuality "1"]
[TimeControl "40/5400+30:1800+30"]

1. d4 {[%emt 0:00:00]} Nf6 {[%emt 0:00:30]} 2. c4 {[%emt 0:00:00]} e6 {[%emt 0:01:00]} 3. Nc3 {[%emt 0:00:00]} d5 {[%emt 0:01:11]} 4. cxd5 {[%emt 0:00:06]} exd5 {[%emt 0:00:24]} 5. Bg5 {[%emt 0:00:29]} Be7 {[%emt 0:00:55]} 6. e3 {[%emt 0:00:17]} O-O {[%emt 0:01:00]} 7. Bd3 {[%emt 0:00:12]} h6 {[%emt 0:00:28]} 8. Bh4 {[%emt 0:00:15]} b6 {[%emt 0:00:37]} 9. Qc2 {[%emt 0:00:51]} Bb7 {[%emt 0:00:24]} 10. Nf3 {[%emt 0:01:13]} c5 {[%emt 0:00:41]} 11. O-O {[%emt 0:00:57]} Na6 {[%emt 0:00:48]} 12. a3 {[%emt 0:00:53]} Nc7 {[%emt 0:01:57]} 13. Rad1 {[%emt 0:03:54]} Ne6 {[%emt 0:02:54]} 14. Bf5 {[%emt 0:01:11]} cxd4 {[%emt 0:04:43]} 15. exd4 {[%emt 0:05:11]} Bc8 {[%emt 0:13:12]} 16. Ne5 {[%emt 0:06:01]} Qc7 {[%emt 0:00:54]} 17. Bxf6 {[%emt 0:17:38]} Bxf6 {[%emt 0:03:13]} 18. f4 {[%emt 0:11:24]} Rd8 {[%emt 0:06:55]} 19. Qa4 {[%emt 0:16:13]} Bxe5 {[%emt 0:05:21]} 20. fxe5 {[%emt 0:02:52]} Qe7 {[%emt 0:01:06]} 21. Qb3 {[%emt 0:10:37]} Ba6 {[%emt 0:05:02]} 22. Rf3 {[%emt 0:04:48]} Bc4 {[%emt 0:01:05]} 23. Qc2 {[%emt 0:00:06]} Re8 {[%emt 0:03:29]} 24. b3 {[%emt 0:04:32]} Ba6 25. Nxd5 {[%emt 0:00:16]} Qd8 {[%emt 0:03:26]} 26. Bxe6 {[%emt 0:00:15]} fxe6 {[%emt 0:00:40]} 27. Nc7 {[%emt 0:05:05]} Be2 {[%emt 0:01:11]} 28. Qxe2 {[%emt 0:01:34]} Qxc7 {[%emt 0:00:04]} 29. Qe4 {[%emt 0:00:33]} Rad8 {[%emt 0:00:25]} 30. Rfd3 {[%emt 0:03:18]} Qe7 {[%emt 0:00:29]} 31. b4 {[%emt 0:01:28]} Rd5 {[%emt 0:00:17]} 32. Rc3 {[%emt 0:00:34]} Red8 {[%emt 0:00:12]} 33. g3 {[%emt 0:02:47]} Qg5 {[%emt 0:00:13]} 34. Rcd3 {[%emt 0:00:46]} Rf8 {[%emt 0:00:13]} 35. Rf3 {[%emt 0:00:23]} Rc8 {[%emt 0:00:33]} 36. Qf4 {[%emt 0:00:27]} Qg6 {[%emt 0:00:07]} 37. Rf2 {[%emt 0:00:24]} Rc2 {[%emt 0:00:26]} 38. Rdd2 {[%emt 0:00:26]} Rc3 {[%emt 0:00:18]} 39. Rf3 {[%emt 0:00:29]} Qb1+ {[%emt 0:01:14]} 40. Kg2 {[%emt 0:00:00]} Rxf3 {[%emt 0:00:00]} 41. Qxf3 {[%emt 0:03:46]} Qa1 {[%emt 0:04:06]} 42. Qd3 {[%emt 0:01:30]} Qe1 {[%emt 0:01:14]} 43. Rc2 {[%emt 0:02:28]} Qxe5 {[%emt 0:01:29]} 44. Rc8+ {[%emt 0:02:12]} Kf7 {[%emt 0:00:31]} 45. dxe5 Rxd3 46. Rc7+ Kg6 47. Rxa7 Kf5 48. Rxg7 Kxe5 49. a4 Rd4 1/2-1/2

[Event "EYCC Girls-U12 2019"]
[Site "Bratislava"]
[Date "2019.08.09"]
[Round "8.15"]
[White "Nordquelle, Amelia"]
[Black "Arora, Tashika"]
[Result "0-1"]
[ECO "D85"]
[WhiteElo "1648"]
[BlackElo "1447"]
[Annotator "NA"]
[PlyCount "110"]
[EventDate "2019.08.02"]
[EventType "swiss"]
[EventCountry "SVK"]
[SourceTitle "playchess.com"]
[Source "ChessBase"]
[SourceQuality "1"]
[TimeControl "40/5400+30:1800+30"]

1. d4 {[%emt 0:00:00]} Nf6 {[%emt 0:00:00]} 2. c4 {[%emt 0:00:00]} g6 {[%emt 0:00:00]} 3. Nc3 {[%emt 0:00:13]} d5 {[%emt 0:00:15]} 4. cxd5 {[%emt 0:00:21]} Nxd5 {[%emt 0:00:10]} 5. e4 {[%emt 0:01:03]} Nxc3 {[%emt 0:00:09]} 6. bxc3 {[%emt 0:00:06]} Bg7 {[%emt 0:00:07]} 7. Be3 {[%emt 0:04:16]} O-O {[%emt 0:00:58]} 8. Bc4 {[%emt 0:01:15]} c5 {[%emt 0:01:00]} 9. Ne2 {[%emt 0:01:02]} Nc6 {[%emt 0:02:44]} 10. O-O {[%emt 0:14:05]} Bg4 {[%emt 0:05:49]} 11. f3 {[%emt 0:02:35]} cxd4 {[%emt 0:04:06]} 12. cxd4 {[%emt 0:01:42]} Bd7 13. Rb1 {[%emt 0:01:46]} Qc7 {[%emt 0:07:40]} 14. Qd3 {[%emt 0:05:19]} Rac8 {[%emt 0:12:30]} 15. Rfc1 {[%emt 0:02:50]} e6 {[%emt 0:12:06]} 16. f4 {[%emt 0:26:01]} Qb8 {[%emt 0:07:54]} 17. Ba6 {[%emt 0:02:26]} Na5 {[%emt 0:03:18]} 18. Bd2 {[%emt 0:01:47]} Rxc1+ {[%emt 0:01:28]} 19. Nxc1 {[%emt 0:00:16]} Qd6 {[%emt 0:05:18]} 20. e5 {[%emt 0:03:42]} Qxa6 {[%emt 0:00:55]} 21. Qxa6 {[%emt 0:03:37]} bxa6 {[%emt 0:02:22]} 22. Bxa5 {[%emt 0:00:14]} Bb5 {[%emt 0:00:46]} 23. Nb3 {[%emt 0:04:31]} Rc8 {[%emt 0:01:41]} 24. Nc5 {[%emt 0:02:58]} Bf8 {[%emt 0:06:42]} 25. Bb4 {[%emt 0:09:08]} a5 {[%emt 0:03:40]} 26. Bxa5 {[%emt 0:05:35]} Bxc5 {[%emt 0:00:14]} 27. dxc5 {[%emt 0:01:03]} Rxc5 {[%emt 0:00:09]} 28. Rd1 {[%emt 0:01:58]} Rc8 {[%emt 0:01:21]} 29. Rd2 {[%emt 0:01:20]} Kf8 {[%emt 0:00:51]} 30. Kf2 {[%emt 0:01:04]} a6 {[%emt 0:00:55]} 31. Kf3 {[%emt 0:00:27]} h5 {[%emt 0:01:34]} 32. g4 {[%emt 0:00:53]} hxg4+ {[%emt 0:00:47]} 33. Kxg4 {[%emt 0:00:11]} Kg7 {[%emt 0:00:39]} 34. Bd8 {[%emt 0:00:27]} Bc6 {[%emt 0:03:03]} 35. Kg5 {[%emt 0:01:20]} Bb5 {[%emt 0:01:00]} 36. Be7 {[%emt 0:01:46]} Bc6 {[%emt 0:01:28]} 37. Rd3 {[%emt 0:00:23]} Bg2 {[%emt 0:01:20]} 38. Rg3 {[%emt 0:00:37]} Bf1 {[%emt 0:00:25]} 39. Rg1 {[%emt 0:00:36]} Bh3 {[%emt 0:00:21]} 40. Rg3 {[%emt 0:00:00]} Bf1 {[%emt 0:00:00]} 41. Bf6+ {[%emt 0:11:02]} Kg8 {[%emt 0:00:39]} 42. Rf3 {[%emt 0:02:57]} Bg2 {[%emt 0:01:36]} 43. Rd3 {[%emt 0:00:45]} Bf1 {[%emt 0:01:23]} 44. Rb3 {[%emt 0:02:38]} Be2 {[%emt 0:02:06]} 45. f5 {[%emt 0:05:58]} exf5 {[%emt 0:07:42]} 46. e6 {[%emt 0:02:18]} fxe6 {[%emt 0:08:31]} 47. Kxg6 {[%emt 0:01:10]} Kf8 {[%emt 0:01:42]} 48. Rb7 {[%emt 0:03:02]} Bd3 {[%emt 0:01:55]} 49. Bg7+ {[%emt 0:01:54]} Ke8 {[%emt 0:00:47]} 50. Kf6 {[%emt 0:00:57]} Bc4 {[%emt 0:00:46]} 51. a3 {[%emt 0:02:17]} Bd5 {[%emt 0:00:40]} 52. h4 {[%emt 0:00:41]} Bxb7 {[%emt 0:01:26]} 53. h5 {[%emt 0:01:13]} f4 {[%emt 0:00:33]} 54. h6 {[%emt 0:00:40]} Be4 {[%emt 0:00:09]} 55. Ke5 {[%emt 0:00:33]} Bf5 {[%emt 0:01:06]} 0-1

[Event "EYCC Girls-U12 2019"]
[Site "Bratislava"]
[Date "2019.08.09"]
[Round "8.16"]
[White "Salajan, Stefania"]
[Black "Gasimova, Samra"]
[Result "1/2-1/2"]
[ECO "C00"]
[WhiteElo "1482"]
[BlackElo "1695"]
[Annotator "NA"]
[PlyCount "52"]
[EventDate "2019.08.02"]
[EventType "swiss"]
[EventCountry "SVK"]
[SourceTitle "playchess.com"]
[Source "ChessBase"]
[SourceQuality "1"]
[TimeControl "40/5400+30:1800+30"]

1. e4 {[%emt 0:00:00]} e6 {[%emt 0:00:00]} 2. f4 {[%emt 0:00:00]} d5 {[%emt 0:00:00]} 3. e5 {[%emt 0:00:00]} c5 {[%emt 0:00:28]} 4. Nf3 {[%emt 0:00:00]} Nc6 {[%emt 0:00:14]} 5. c3 {[%emt 0:00:00]} d4 {[%emt 0:04:51]} 6. Bd3 {[%emt 0:05:22]} Nge7 {[%emt 0:02:06]} 7. Be4 {[%emt 0:10:29]} Nd5 {[%emt 0:20:17]} 8. d3 {[%emt 0:10:03]} g6 {[%emt 0:10:49]} 9. c4 {[%emt 0:06:26]} Nde7 {[%emt 0:00:26]} 10. O-O {[%emt 0:03:12]} Bg7 {[%emt 0:00:19]} 11. Na3 {[%emt 0:01:46]} a6 {[%emt 0:00:29]} 12. Nc2 {[%emt 0:00:36]} Rb8 {[%emt 0:02:08]} 13. a4 {[%emt 0:02:25]} O-O {[%emt 0:02:43]} 14. Bd2 {[%emt 0:03:58]} Qc7 {[%emt 0:02:48]} 15. b4 {[%emt 0:18:00]} b6 {[%emt 0:00:08]} 16. b5 {[%emt 0:03:42]} axb5 {[%emt 0:01:00]} 17. axb5 {[%emt 0:00:05]} Nd8 {[%emt 0:00:21]} 18. Ra3 {[%emt 0:04:29]} Bb7 {[%emt 0:00:26]} 19. Qe2 {[%emt 0:02:26]} Bxe4 {[%emt 0:08:37]} 20. Qxe4 {[%emt 0:00:14]} Nb7 {[%emt 0:00:19]} 21. Rfa1 {[%emt 0:02:16]} Bh6 {[%emt 0:01:03]} 22. Ra7 {[%emt 0:03:40]} Nc8 {[%emt 0:02:37]} 23. R7a3 {[%emt 0:01:29]} Ne7 {[%emt 0:00:08]} 24. Bc1 {[%emt 0:07:26]} Bg7 {[%emt 0:01:08]} 25. Nd2 {[%emt 0:03:42]} Bh6 {[%emt 0:04:40]} 26. Nf1 {[%emt 0:01:09]} f6 {[%emt 0:00:56]} 1/2-1/2